fUST/lending_fUST_20241029
["ID","MTS","AMOUNT","RATE_DAILY","PERIOD"]
[340974079,1730194340507,500.0,0.00022465,3]
[340974080,1730194340680,885.46,0.00021919,3]
[340974081,1730194340708,801.58,0.00021917,3]
[340974082,1730194340765,500.0,0.00022465,3]
[340974083,1730194341017,885.46,0.00022193,3]
[340974084,1730194341043,801.58,0.00022191,3]
[340974085,1730194341284,885.46,0.00022467,3]
[340974086,1730194341310,801.58,0.00022465,3]
[340974087,1730194342154,500.0,0.00021917,3]
[340974088,1730194342408,500.0,0.00021917,3]
[340974089,1730194342437,500.0,0.00022191,3]
[340974090,1730194342696,369.79728314,0.00022191,3]
[340974091,1730194342721,500.0,0.00022465,3]
[340974092,1730194343142,598.18661494,0.00021918,3]
[340974093,1730194343445,500.0,0.00021917,3]
[340974094,1730194343727,505.05336059,0.00022191,3]
[340974095,1730194345580,500.0,0.00021917,3]
[340974096,1730194345863,160.6240056,0.00022191,3]
[340974097,1730194543460,176.5034525,0.00019355,2]
[340974099,1730194650957,170.944202,0.00019624,2]
[340974100,1730194651420,170.944202,0.00019722,2]
[340974102,1730194712114,206.2072295,0.0001962,2]
[340974103,1730194735972,250.0,0.00019624,2]
[340974104,1730194935397,807.881462,0.0001962,2]
[340974105,1730194954958,4322.8568856,0.0001962,2]
[340974166,1730195005541,3000.0,0.00019605,2]
[340974168,1730195037672,1528.407644,0.00019612,2]
[340974169,1730195099280,24900.0,0.00019611,2]
[340974171,1730195132141,-250.0,0.0002016,2]
[340974172,1730195132164,-250.0,0.00020216,2]
[340974173,1730195132186,-250.0,0.00020271,2]
[340974174,1730195132208,-1528.407644,0.00020297,2]
[340974175,1730195132230,-250.0,0.00020326,2]
[340974176,1730195132251,-250.0,0.00020382,2]
[340974177,1730195132271,-225.97053834,0.00020392,2]
[340974178,1730195132292,-250.0,0.00020437,2]
[340974179,1730195132314,-250.0,0.00020492,2]
[340974180,1730195132338,-250.0,0.00020548,2]
[340974181,1730195132360,-225.97053832,0.00020558,2]
[340974182,1730195132382,-250.0,0.00020603,2]
[340974183,1730195132404,-250.0,0.00020658,2]
[340974184,1730195132426,-250.0,0.00020713,2]
[340974185,1730195132448,-225.97053832,0.00020724,2]
[340974186,1730195132470,-250.0,0.00020769,2]
[340974187,1730195132492,-7.76291535,0.00020799,2]
[340974190,1730195236107,-155.25153954,0.00020602,2]
[340974191,1730195238097,-48.09828546,0.00020602,2]
[340974192,1730195238122,-203.349825,0.00020658,2]
[340974193,1730195238145,-203.349825,0.00020715,2]
[340974194,1730195238170,-203.349825,0.00020771,2]
[340974195,1730195238195,-203.349825,0.00020828,2]
[340974196,1730195238220,-203.349825,0.00020884,2]
[340974197,1730195238243,-500.0,0.000209,2]
[340974198,1730195238266,-203.349825,0.00020941,2]
[340974199,1730195238289,-1528.407644,0.00020982,2]
[340974200,1730195238314,-203.349825,0.00020997,2]
[340974201,1730195238338,-203.349825,0.00021054,2]
[340974202,1730195238362,-203.349825,0.0002111,2]
[340974203,1730195238385,-203.349825,0.00021167,2]
[340974204,1730195238409,-203.349825,0.00021223,2]
[340974205,1730195238436,-203.349825,0.0002128,2]
[340974206,1730195238459,-203.349825,0.00021336,2]
[340974207,1730195238483,-203.349825,0.00021393,2]
[340974208,1730195238622,-203.349825,0.00021449,2]
[340974209,1730195238647,-203.349825,0.00021506,2]
[340974210,1730195238676,-203.349825,0.00021562,2]
[340974211,1730195238710,-203.349825,0.00021619,2]
[340974212,1730195238733,-203.349825,0.00021675,2]
[340974213,1730195238759,-300.0,0.00021778,2]
[340974214,1730195238795,-300.0,0.00021778,2]
[340974215,1730195238821,-1159.46396632,0.00021799,2]
[340974216,1730195238846,-1159.4639663,0.00021801,2]
[340974217,1730195238869,-1159.4639663,0.00021803,2]
[340974218,1730195238894,-1159.4639663,0.00021805,2]
[340974219,1730195238921,-1159.4639663,0.00021807,2]
[340974220,1730195238949,-231.60532692,0.00021819,2]
[340974221,1730195238972,-7963.89690632,0.00021835,2]
[340974222,1730195238996,-500.71036577,0.00021873,2]
[340974223,1730195239020,-500.0,0.00021873,2]
[340974224,1730195239044,-712.24,0.00021887,3]
[340974225,1730195239068,-444.56393526,0.00021896,2]
[340974226,1730195239092,-500.0,0.00021896,2]
[340974227,1730195239117,-500.0,0.00021896,2]
[340974228,1730195239140,-500.0,0.00021896,2]
[340974229,1730195239164,-161.46157023,0.00021896,2]
[340974230,1730195239192,-500.0,0.00021896,2]
[340974231,1730195239217,-500.0,0.00021896,2]
[340974232,1730195239240,-500.0,0.00021896,2]
[340974233,1730195239269,-500.0,0.00021896,2]
[340974234,1730195239291,-500.0,0.00021896,2]
[340974235,1730195239317,-500.0,0.00021896,2]
[340974236,1730195239340,-500.0,0.00021896,2]
[340974237,1730195239368,-500.0,0.00021896,2]
[340974238,1730195239391,-500.0,0.00021896,2]
[340974239,1730195239414,-630.37306477,0.00021896,2]
[340974240,1730195239440,-500.0,0.00021896,2]
[340974241,1730195239463,-500.0,0.00021896,2]
[340974242,1730195239486,-331.20814809,0.00021896,2]
[340974243,1730195239509,-441.96871613,0.00021896,2]
[340974244,1730195239534,-261.30155427,0.00021896,2]
[340974245,1730195239557,-500.0,0.00021896,2]
[340974246,1730195239579,-500.0,0.00021896,2]
[340974247,1730195239602,-500.0,0.00021896,2]
[340974248,1730195239627,-20198.36536566,0.00021897,3]
[340974249,1730195244159,-11596.75792884,0.00021897,3]
[340974250,1730195244184,-151095.83298478,0.00021897,3]
[340974252,1730195348141,-250.0,0.00020905,2]
[340974253,1730195348164,-751.3549186,0.00021807,2]
[340974374,1730195435525,-300.0,0.00021896,2]
[340974375,1730195435535,-300.0,0.00021896,2]
[340974376,1730195435544,-4476.88845954,0.00021897,3]
[340974384,1730195438454,-7442.57979044,0.00021897,3]
[340974385,1730195438470,-18285.89887972,0.00021897,3]
[340974386,1730195438479,-1314.93078302,0.00021897,3]
[340974387,1730195438488,-500.0,0.000219,3]
[340974388,1730195438498,-500.0,0.000219,3]
[340974389,1730195438507,-311.19475468,0.00021906,2]
[340974390,1730195438516,-251.25572825,0.00021906,2]
[340974391,1730195438526,-403.37478497,0.00021906,2]
[340974392,1730195438536,-271.32985735,0.00021906,2]
[340974393,1730195438545,-203.46757201,0.00021906,2]
[340974394,1730195438555,-154.40355128,0.00021907,2]
[340974395,1730195438565,-38.56481757,0.00021907,3]
[340974399,1730195441348,-5912.7963766,0.00021907,3]
[340974400,1730195441366,-51250.0,0.00021907,3]
[340974401,1730195441378,-43314.72538542,0.00021907,3]
[340974405,1730195447739,-18076.95454596,0.00021907,3]
[340974406,1730195448278,-299.96718443,0.000219,3]
[340974407,1730195448382,-695.80781557,0.00021907,3]
[340974408,1730195448804,-12270.71510625,0.00021907,3]
[340974409,1730195448815,-10578.72904925,0.00021907,3]
[340974410,1730196352271,-2853.27323119,0.00020277,2]
[340974411,1730196553140,-300.0,0.00020276,2]
[340974412,1730196553162,-300.0,0.00020276,2]
[340974413,1730196553184,-22046.72676881,0.00020277,2]
[340974414,1730196553205,-3000.0,0.00020679,2]
[340974415,1730196555156,-177.97757044,0.00021,2]
[340974416,1730196555179,-6666.79193541,0.0002125,2]
[340974417,1730196555201,-7963.89690632,0.00021285,2]
[340974418,1730196555224,-256.737,0.0002135,2]
[340974419,1730196555246,-168.05499853,0.00021439,2]
[340974420,1730196555271,-7963.89690632,0.0002151,2]
[340974421,1730196555295,-217.83632828,0.00021906,2]
[340974422,1730196555317,-274.22481562,0.00021906,2]
[340974423,1730196555341,-143727.16867731,0.00021907,3]
[340974424,1730196568111,-8271.49369663,0.00021907,3]
[340974432,1730196638530,-300.0,0.00021906,2]
[340974433,1730196638540,-25.34471682,0.00021906,2]
[340974449,1730196643451,-274.65528318,0.00021906,2]
[340974450,1730196643464,-168.05499853,0.00021907,2]
[340974451,1730196643477,-910.55060678,0.00021907,3]
[340974490,1730196646472,-626.68295598,0.00021907,3]
[340974492,1730197057153,176.503452,0.00019925,2]
[340974493,1730197262876,157.518062,0.00013973,2]
[340974494,1730197302430,2012.34540479,0.00035435,30]
[340974495,1730197365804,164.5509895,0.00019796,2]
[340974496,1730197396592,24900.0,0.00019796,2]
[340974498,1730197484941,250.0,0.00019986,2]
[340974499,1730197540141,-271.8805638,0.00020165,2]
[340974500,1730197540163,-160.942883,0.00020319,2]
[340974501,1730197540183,-1892.8947803,0.00020326,2]
[340974502,1730197540206,-160.942883,0.00020407,2]
[340974503,1730197540228,-160.942883,0.00020495,2]
[340974504,1730197540248,-156.61186995,0.00020572,2]
[340974505,1730197540271,-160.942883,0.00020584,2]
[340974506,1730197540292,-160.942883,0.00020672,2]
[340974507,1730197540314,-160.942883,0.0002076,2]
[340974508,1730197540335,-160.942883,0.00020848,2]
[340974509,1730197540356,-160.942883,0.00020937,2]
[340974510,1730197540376,-1617.89518122,0.00020982,2]
[340974511,1730197540398,-160.942883,0.00021025,2]
[340974512,1730197540418,-156.61186995,0.00021101,2]
[340974513,1730197540440,-160.942883,0.00021113,2]
[340974514,1730197540462,-160.942883,0.00021201,2]
[340974515,1730197540484,-300.0,0.00021287,2]
[340974516,1730197540505,-302.247355,0.00021288,2]
[340974517,1730197540528,-153.0,0.00021288,2]
[340974518,1730197540654,-153.0,0.00021288,2]
[340974519,1730197540678,-153.0,0.00021288,2]
[340974520,1730197540703,-160.942883,0.0002129,2]
[340974521,1730197540726,-160.942883,0.00021378,2]
[340974522,1730197540747,-302.8122814,0.000214,2]
[340974523,1730197540774,-302.8122814,0.000215,2]
[340974524,1730197540795,-209.4362482,0.00021635,2]
[340974525,1730197540818,-38425.371976,0.00021635,2]
[340974526,1730197540841,-4863.88832199,0.00021637,2]
[340974527,1730197540864,-183.98228965,0.00021797,2]
[340974528,1730197540885,-183.98228965,0.00021804,2]
[340974529,1730197540907,-183.98228965,0.0002181,2]
[340974530,1730197540929,-183.98228965,0.00021817,2]
[340974531,1730197540951,-752.06,0.00021887,3]
[340974532,1730197540971,-174.61986865,0.00021896,2]
[340974533,1730197540993,-292.77717161,0.00021896,2]
[340974534,1730197541017,-34460.58761168,0.00021897,3]
[340974535,1730197546103,-10572.08057234,0.0002162,3]
[340974536,1730197546127,-77950.44590232,0.00021897,3]
[340974537,1730197546151,-5090.5639387,0.00021897,3]
[340974538,1730197546171,-158.43059015,0.000219,2]
[340974539,1730197546194,-17139.56865018,0.00021907,3]
[340974540,1730197627124,-258.91738716,0.00021807,2]
[340974541,1730197631115,-5962.83194104,0.00021807,2]
[340974542,1730197631138,-300.0,0.00021906,2]
[340974543,1730197631161,-300.0,0.00021906,2]
[340974544,1730197631187,-95271.46486382,0.00021907,3]
[340974545,1730197631211,-5533.82928714,0.00021907,3]
[340974546,1730197634150,-151.92539443,0.00021907,3]
[340974547,1730197646141,-1441.03483261,0.00021907,3]
[340974548,1730197646164,-204.94402012,0.00021916,2]
[340974549,1730197646186,-500.0,0.00021917,3]
[340974550,1730197646208,-500.0,0.00021917,3]
[340974551,1730197646230,-429.01964981,0.00021917,3]
[340974606,1730197838641,-5444.03066214,0.00021807,2]
[340974607,1730197838651,-300.0,0.00021906,2]
[340974608,1730197838660,-300.0,0.00021906,2]
[340974609,1730197838670,-209.43624821,0.00021907,2]
[340974610,1730197838681,-6069.98749561,0.00021907,3]
[340974612,1730197838832,-341.66650028,0.00021907,3]
[340974613,1730197838891,-164.47854683,0.00021907,3]
[340974614,1730197838904,-48779.57490237,0.00021907,3]
[340974659,1730197840950,-644.87012437,0.00021907,3]
[340974660,1730197841012,-11446.04253904,0.00021907,3]
[340974661,1730197841024,-483.74924896,0.00021907,3]
[340974664,1730197844378,-10129.61562367,0.00021907,3]
[340974669,1730198182634,1867.58583986,0.00035412,120]
[340974677,1730198460969,24900.0,0.0001993,2]
[340974678,1730198496287,501.0,0.00035452,30]
[340974679,1730198496506,501.0,0.00035452,30]
[340974680,1730198496815,997.5,0.00035452,30]
[340974690,1730198730105,-253.385704,0.00020876,2]
[340974691,1730198730129,-253.385704,0.00020882,2]
[340974692,1730198730152,-253.385704,0.00020887,2]
[340974693,1730198730175,-253.385704,0.00020893,2]
[340974694,1730198730199,-253.385704,0.00020898,2]
[340974695,1730198730221,-253.385704,0.00020904,2]
[340974696,1730198730370,-253.385704,0.0002091,2]
[340974697,1730198730393,-253.385704,0.00020915,2]
[340974698,1730198730414,-253.385704,0.00020921,2]
[340974699,1730198730436,-253.385704,0.00020926,2]
[340974700,1730198730471,-253.385704,0.00020932,2]
[340974701,1730198730497,-253.385704,0.00020937,2]
[340974702,1730198730521,-253.385704,0.00020943,2]
[340974703,1730198730545,-253.385704,0.00020948,2]
[340974704,1730198730567,-253.385704,0.00020954,2]
[340974705,1730198730589,-253.385704,0.00020959,2]
[340974706,1730198730612,-253.385704,0.00020965,2]
[340974707,1730198730634,-127.26159714,0.0002097,2]
[340974731,1730198843090,-126.12410686,0.0002097,2]
[340974733,1730198843113,-253.385704,0.00020976,2]
[340974735,1730198843134,-253.385704,0.00020981,2]
[340974737,1730198843156,-259.364,0.0002159,2]
[340974739,1730198843178,-195.16849664,0.00021807,2]
[340974856,1730198846408,-215.44492174,0.00021807,2]
[340975115,1730198941672,200.000001,0.00013973,2]
[340975146,1730199038014,-500.0,0.0002087,2]
[340975147,1730199038026,-332.598,0.0002087,2]
[340975148,1730199038038,-776.99252432,0.0002087,2]
[340975149,1730199038050,-996.97570125,0.0002087,2]
[340975150,1730199038059,-194.15815524,0.0002087,2]
[340975151,1730199038068,-300.0,0.00020896,2]
[340975153,1730199038077,-24900.0,0.00020897,2]
[340975155,1730199038087,-465.00106351,0.00021712,2]
[340975157,1730199038095,-500.0,0.00021873,2]
[340975159,1730199038105,-195.38,0.00021887,3]
[340975160,1730199038114,-127070.668901,0.00021897,3]
[340975161,1730199038123,-169427.558535,0.00021907,3]
[340975162,1730199038133,-151.0,0.00021907,2]
[340975163,1730199038142,-151.0,0.00021907,2]
[340975164,1730199038152,-180.76565189,0.00021915,2]
[340975165,1730199038162,-7845.13733404,0.00021915,2]
[340975166,1730199038172,-506.48436837,0.00021917,3]
[340975167,1730199038182,-500.0,0.00021917,3]
[340975168,1730199038193,-500.0,0.00021917,3]
[340975169,1730199038210,-500.0,0.00021917,3]
[340975170,1730199038225,-556.10086888,0.00021917,3]
[340975171,1730199038237,-520.04378323,0.00021917,3]
[340975172,1730199038248,-500.0,0.00021917,3]
[340975173,1730199038259,-506.7205704,0.00021917,3]
[340975174,1730199038269,-500.0,0.00021917,3]
[340975175,1730199038280,-500.0,0.00021917,3]
[340975176,1730199038291,-500.0,0.00021917,3]
[340975177,1730199038304,-500.0,0.00021917,3]
[340975178,1730199038313,-500.0,0.00021917,3]
[340975179,1730199038323,-500.0,0.00021917,3]
[340975180,1730199038333,-504.11698583,0.00021917,3]
[340975181,1730199038344,-500.0,0.00021917,3]
[340975182,1730199038354,-705.57,0.00021917,3]
[340975183,1730199038364,-500.0,0.00021917,3]
[340975184,1730199038374,-500.0,0.00021917,3]
[340975185,1730199038384,-440.00461823,0.00021917,3]
[340975186,1730199038394,-504.86416501,0.00021917,3]
[340975187,1730199038403,-500.0,0.00021917,3]
[340975188,1730199038413,-500.0,0.00021917,3]
[340975189,1730199038423,-500.0,0.00021917,3]
[340975190,1730199038433,-502.70550443,0.00021917,3]
[340975191,1730199038442,-519.0,0.00021917,3]
[340975192,1730199038453,-500.0,0.00021917,3]
[340975193,1730199038466,-500.0,0.00021917,3]
[340975194,1730199038478,-500.55845442,0.00021917,3]
[340975195,1730199038487,-507.69302859,0.00021917,3]
[340975196,1730199038497,-500.0,0.00021917,3]
[340975197,1730199038506,-503.41998529,0.00021917,3]
[340975198,1730199038516,-503.21239165,0.00021917,3]
[340975199,1730199038525,-500.0,0.00021917,3]
[340975200,1730199038534,-500.0,0.00021917,3]
[340975201,1730199038543,-500.0,0.00021917,3]
[340975202,1730199038553,-500.0,0.00021917,3]
[340975203,1730199038563,-505.14,0.00021917,3]
[340975204,1730199038572,-544.44,0.00021917,3]
[340975205,1730199038583,-500.0,0.00021917,3]
[340975206,1730199038594,-500.0,0.00021917,3]
[340975207,1730199038603,-500.0,0.00021917,3]
[340975208,1730199038614,-151.0,0.00021917,2]
[340975209,1730199038625,-500.0,0.00021917,3]
[340975210,1730199038635,-151.0,0.00021917,2]
[340975211,1730199038644,-637.21443188,0.00021917,3]
[340975212,1730199038658,-500.0,0.00021917,3]
[340975213,1730199038668,-500.0,0.00021917,3]
[340975214,1730199038678,-500.0,0.00021917,3]
[340975215,1730199038688,-500.0,0.00021917,3]
[340975216,1730199038700,-500.0,0.00021917,3]
[340975217,1730199038711,-500.0,0.00021917,3]
[340975218,1730199038722,-500.0,0.00021917,3]
[340975219,1730199038735,-500.0,0.00021917,3]
[340975220,1730199038747,-550.38352854,0.00021917,3]
[340975221,1730199038759,-500.0,0.00021917,3]
[340975222,1730199038769,-500.0,0.00021917,3]
[340975223,1730199038782,-500.0,0.00021917,3]
[340975224,1730199038793,-502.8780655,0.00021917,3]
[340975225,1730199038802,-500.0,0.00021917,3]
[340975226,1730199038811,-500.0,0.00021917,3]
[340975227,1730199038824,-272.505376,0.00021917,2]
[340975228,1730199038834,-545.48833944,0.00021917,3]
[340975229,1730199038843,-500.0,0.00021917,3]
[340975230,1730199038853,-500.0,0.00021917,3]
[340975231,1730199038863,-500.0,0.00021917,3]
[340975232,1730199038873,-500.0,0.00021917,3]
[340975233,1730199038883,-500.0,0.00021917,3]
[340975234,1730199038893,-1574.92,0.00021917,2]
[340975235,1730199038904,-1574.92,0.00021917,2]
[340975236,1730199038914,-1574.92,0.00021917,2]
[340975237,1730199038924,-1574.92,0.00021917,2]
[340975238,1730199038934,-1574.92,0.00021917,2]
[340975239,1730199038943,-500.0,0.00021917,3]
[340975240,1730199038955,-1574.92,0.00021917,2]
[340975241,1730199038966,-1574.92,0.00021917,2]
[340975242,1730199038977,-1574.92,0.00021917,2]
[340975243,1730199038987,-1574.92,0.00021917,2]
[340975244,1730199038998,-1574.92,0.00021917,2]
[340975245,1730199039009,-1574.92,0.00021917,2]
[340975246,1730199039020,-1574.92,0.00021917,2]
[340975247,1730199039032,-1574.92,0.00021917,2]
[340975248,1730199039043,-1574.92,0.00021917,2]
[340975249,1730199039053,-1574.92,0.00021917,2]
[340975250,1730199039064,-1574.92,0.00021917,2]
[340975251,1730199039075,-1574.92,0.00021917,2]
[340975252,1730199039084,-1574.92,0.00021917,2]
[340975253,1730199039094,-1574.92,0.00021917,2]
[340975254,1730199039106,-1574.92,0.00021917,2]
[340975255,1730199039117,-1574.92,0.00021917,2]
[340975256,1730199039127,-1574.92,0.00021917,2]
[340975257,1730199039139,-1574.92,0.00021917,2]
[340975258,1730199039150,-1575.12396922,0.00021917,2]
[340975259,1730199039161,-500.0,0.00021917,3]
[340975260,1730199039172,-537.27,0.00021917,3]
[340975261,1730199039182,-500.0,0.00021917,3]
[340975262,1730199039324,-451.13922466,0.00021917,3]
[340975263,1730199039334,-500.0,0.00021917,3]
[340975264,1730199039343,-500.0,0.00021917,3]
[340975265,1730199039353,-500.0,0.00021917,3]
[340975266,1730199039361,-507.11,0.00021917,3]
[340975267,1730199039371,-500.0,0.00021917,3]
[340975268,1730199039380,-500.0,0.00021917,3]
[340975269,1730199039390,-500.0,0.00021917,3]
[340975270,1730199039399,-500.0,0.00021917,3]
[340975271,1730199039409,-500.0,0.00021917,3]
[340975272,1730199039418,-396.09529169,0.00021917,3]
[340975273,1730199039427,-509.35383337,0.00021917,3]
[340975274,1730199039436,-500.0,0.00021917,3]
[340975275,1730199039445,-500.0,0.00021917,3]
[340975276,1730199039457,-500.0,0.00021917,3]
[340975277,1730199039466,-500.0,0.00021917,3]
[340975278,1730199039475,-500.0,0.00021917,3]
[340975279,1730199039483,-500.0,0.00021917,3]
[340975280,1730199039492,-500.0,0.00021917,3]
[340975281,1730199039502,-500.0,0.00021917,3]
[340975282,1730199039512,-500.0,0.00021917,3]
[340975283,1730199039522,-500.0,0.00021917,3]
[340975285,1730199039532,-500.0,0.00021917,3]
[340975286,1730199039542,-152.123705,0.00021917,2]
[340975287,1730199039553,-589.30182838,0.00021917,3]
[340975288,1730199039564,-500.0,0.00021917,3]
[340975289,1730199039573,-794.02,0.00021917,3]
[340975290,1730199039582,-682.39,0.00021917,3]
[340975291,1730199039594,-500.0,0.00021917,3]
[340975292,1730199039604,-500.0,0.00021917,3]
[340975293,1730199039615,-384.2,0.00021917,3]
[340975294,1730199039625,-500.0,0.00021917,3]
[340975295,1730199039635,-853.1,0.00021917,3]
[340975296,1730199039644,-500.0,0.00021917,3]
[340975297,1730199039656,-500.0,0.00021917,3]
[340975298,1730199039667,-500.0,0.00021917,3]
[340975299,1730199039676,-500.10580429,0.00021917,3]
[340975300,1730199039686,-500.0,0.00021917,3]
[340975301,1730199039696,-500.0,0.00021917,3]
[340975302,1730199039706,-509.34,0.00021917,3]
[340975303,1730199039716,-500.0,0.00021917,3]
[340975304,1730199039725,-500.0,0.00021917,3]
[340975305,1730199039734,-913.89,0.00021917,3]
[340975306,1730199039745,-500.0,0.00021917,3]
[340975307,1730199039755,-500.0,0.00021917,3]
[340975308,1730199039764,-475.44971954,0.00021917,3]
[340975309,1730199039775,-500.0,0.00021917,3]
[340975310,1730199039784,-500.0,0.00021917,3]
[340975311,1730199039794,-774.78,0.00021917,3]
[340975312,1730199039805,-500.0,0.00021917,3]
[340975313,1730199039815,-500.0,0.00021917,3]
[340975314,1730199039825,-500.0,0.00021917,3]
[340975315,1730199039835,-500.0,0.00021917,3]
[340975316,1730199039845,-500.0,0.00021917,3]
[340975317,1730199039855,-537.87699015,0.00021917,3]
[340975318,1730199039866,-581.82,0.00021917,3]
[340975319,1730199039877,-500.0,0.00021917,3]
[340975320,1730199039889,-175.24349144,0.00021917,3]
[340975321,1730199039901,-638.22,0.00021917,3]
[340975322,1730199039912,-572.77,0.00021917,3]
[340975323,1730199039922,-506.14357973,0.00021917,3]
[340975324,1730199039932,-500.0,0.00021917,3]
[340975325,1730199039944,-500.25106795,0.00021917,3]
[340975326,1730199039954,-500.0,0.00021917,3]
[340975327,1730199039963,-500.0,0.00021917,3]
[340975328,1730199039972,-500.0,0.00021917,3]
[340975329,1730199039981,-500.0,0.00021917,3]
[340975330,1730199039993,-500.0,0.00021917,3]
[340975331,1730199040005,-500.0,0.00021917,3]
[340975332,1730199040016,-500.0,0.00021917,3]
[340975333,1730199040027,-500.0,0.00021917,3]
[340975334,1730199040037,-500.0,0.00021917,3]
[340975335,1730199040047,-500.0,0.00021917,3]
[340975336,1730199040058,-500.0,0.00021917,3]
[340975337,1730199040069,-237.35986122,0.00021917,3]
[340975338,1730199040078,-500.0,0.00021917,3]
[340975339,1730199040088,-500.0,0.00021917,3]
[340975340,1730199040100,-500.0,0.00021917,3]
[340975341,1730199040112,-500.0,0.00021917,3]
[340975342,1730199040128,-500.0,0.00021917,3]
[340975343,1730199040142,-591.22,0.00021917,3]
[340975344,1730199040153,-500.0,0.00021917,3]
[340975345,1730199040163,-713.78,0.00021917,3]
[340975346,1730199040174,-500.0,0.00021917,3]
[340975347,1730199040186,-500.0,0.00021917,3]
[340975348,1730199040197,-500.0,0.00021917,3]
[340975349,1730199040210,-151.0,0.00021917,2]
[340975350,1730199040222,-151.0,0.00021917,2]
[340975351,1730199040231,-500.0,0.00021917,3]
[340975352,1730199040243,-500.0,0.00021917,3]
[340975353,1730199040255,-500.0,0.00021917,3]
[340975354,1730199040264,-268.273165,0.00021917,2]
[340975355,1730199040275,-500.0,0.00021917,3]
[340975356,1730199040285,-500.0,0.00021917,3]
[340975357,1730199040297,-179.80058708,0.00021917,3]
[340975358,1730199040310,-634.53,0.00021917,3]
[340975359,1730199040321,-500.0,0.00021917,3]
[340975360,1730199040331,-500.0,0.00021917,3]
[340975361,1730199040341,-500.0,0.00021917,3]
[340975362,1730199040353,-502.89067008,0.00021917,3]
[340975363,1730199040364,-500.0,0.00021917,3]
[340975364,1730199040375,-500.0,0.00021917,3]
[340975365,1730199040385,-500.0,0.00021917,3]
[340975366,1730199040396,-504.05078197,0.00021917,3]
[340975367,1730199040406,-597.87,0.00021917,3]
[340975368,1730199040417,-500.0,0.00021917,3]
[340975369,1730199040426,-500.0,0.00021917,3]
[340975370,1730199040437,-500.0,0.00021917,3]
[340975371,1730199040448,-500.0,0.00021917,3]
[340975372,1730199040458,-500.0,0.00021917,3]
[340975373,1730199040468,-500.0,0.00021917,3]
[340975374,1730199040478,-500.0,0.00021917,3]
[340975375,1730199040490,-500.0,0.00021917,3]
[340975376,1730199040501,-500.0,0.00021917,3]
[340975377,1730199040513,-500.0,0.00021917,3]
[340975378,1730199040524,-500.0,0.00021917,3]
[340975379,1730199040534,-500.0,0.00021917,3]
[340975380,1730199040545,-510.38743013,0.00021917,3]
[340975381,1730199040556,-500.0,0.00021917,3]
[340975382,1730199040568,-203.12431356,0.00021917,3]
[340975383,1730199040578,-500.0,0.00021917,3]
[340975384,1730199040588,-502.52220548,0.00021917,3]
[340975385,1730199040599,-511.22477917,0.00021917,3]
[340975386,1730199040610,-500.0,0.00021917,3]
[340975387,1730199040620,-500.0,0.00021917,3]
[340975388,1730199040632,-500.0,0.00021917,3]
[340975389,1730199040641,-500.0,0.00021917,3]
[340975390,1730199040651,-500.0,0.00021917,3]
[340975391,1730199040665,-500.0,0.00021917,3]
[340975392,1730199040675,-514.92010737,0.00021917,3]
[340975393,1730199040685,-500.0,0.00021917,3]
[340975394,1730199040695,-500.0,0.00021917,3]
[340975395,1730199040706,-500.0,0.00021917,3]
[340975396,1730199040717,-1003.15,0.00021917,3]
[340975397,1730199040727,-724.17,0.00021917,3]